bitfinex-derivatives/quotes_BTCF0:USTF0_20241006
["timestamp","ask_amount","ask_price","bid_price","bid_amount"]
[1728206499133,0.07055427,62079.0,62078.0,0.190831]
[1728206499529,0.11999226,62079.0,62078.0,0.190831]
[1728206500230,0.11999226,62079.0,62078.0,0.0164]
[1728206500431,0.22999226,62079.0,62078.0,0.01096479]
[1728206500828,0.28776016,62079.0,62078.0,0.01096479]
[1728206501036,0.22999226,62079.0,62078.0,0.01096479]
[1728206501934,0.11999226,62079.0,62078.0,0.01096479]
[1728206502135,0.11999226,62079.0,62078.0,0.12096479]
[1728206503641,0.11999666,62079.0,62078.0,0.12096479]
[1728206506834,0.18442666,62079.0,62078.0,0.12096479]
[1728206507231,0.06443,62079.0,62078.0,0.33296802]
[1728206513346,0.06443,62079.0,62078.0,0.33297201]
[1728206514139,0.06443,62079.0,62078.0,0.01096479]
[1728206514140,0.18442711,62079.0,62078.0,0.01096479]
[1728206514344,0.18442711,62079.0,62076.0,0.174433]
[1728206514538,0.0004,62077.0,62076.0,0.174433]
[1728206514733,0.12039711,62077.0,62076.0,0.174433]
[1728206515540,0.12039711,62077.0,62076.0,0.183433]
[1728206515935,0.12039711,62077.0,62076.0,0.193433]
[1728206517351,0.12139711,62077.0,62076.0,0.193433]
[1728206522149,0.0014,62077.0,62076.0,0.44779331]
[1728206525156,0.0014,62077.0,62076.0,0.80859331]
[1728206529255,0.0014,62077.0,62076.0,0.67076186]
[1728206530968,0.0014,62077.0,62076.0,0.67066767]
[1728206531158,0.0014,62077.0,62076.0,0.67066765]
[1728206534157,0.0014,62077.0,62076.0,0.76715667]
[1728206537363,0.0014,62077.0,62076.0,0.554233]
[1728206538057,0.05083625,62077.0,62076.0,0.554233]
[1728206538259,0.0719518,62077.0,62076.0,0.554233]
[1728206538565,0.05083625,62077.0,62076.0,0.554233]
[1728206538857,0.12138805,62077.0,62076.0,0.554233]
[1728206539571,0.12138805,62077.0,62076.0,0.193433]
[1728206539875,0.28249742,62077.0,62076.0,0.554233]
[1728206540057,0.12138805,62077.0,62076.0,0.554233]
[1728206544467,0.16103783,62079.0,62078.0,0.064431]
[1728206544773,0.16103783,62079.0,62078.0,0.42947326]
[1728206544968,0.16103783,62079.0,62078.0,0.42987326]
[1728206545373,0.16103783,62079.0,62078.0,0.42982249]
[1728206546165,0.16203783,62079.0,62078.0,0.44382249]
[1728206546355,0.16303783,62079.0,62078.0,0.44382249]
[1728206547269,0.16303783,62079.0,62078.0,0.80462249]
[1728206550473,0.16303783,62079.0,62078.0,0.80456581]
[1728206550872,0.16303783,62079.0,62078.0,0.66593541]
[1728206551181,0.16303783,62079.0,62078.0,0.80445716]
[1728206551482,0.002,62079.0,62078.0,1.09403357]
[1728206552260,0.03310844,62079.0,62078.0,0.549631]
[1728206552476,0.12197784,62079.0,62078.0,0.549631]
[1728206553872,0.12197784,62079.0,62078.0,0.57894446]
[1728206554960,0.12197663,62079.0,62078.0,0.57894446]
[1728206555170,0.12197663,62079.0,62078.0,0.21814446]
[1728206555171,0.14686037,62079.0,62078.0,0.21814446]
[1728206555361,0.14686037,62079.0,62078.0,0.57894446]
[1728206555870,0.266837,62079.0,62078.0,0.57894446]
[1728206556577,0.12197663,62079.0,62078.0,0.57894446]
[1728206557971,0.07254508,62079.0,62078.0,0.57894446]
[1728206559472,0.07254508,62079.0,62078.0,0.8160155]
[1728206559473,0.002,62079.0,62078.0,0.8160155]
[1728206559678,0.002,62079.0,62078.0,1.1768155]
[1728206559877,0.002,62079.0,62078.0,1.17669823]
[1728206560069,0.002,62079.0,62078.0,0.81589823]
[1728206560269,0.002,62079.0,62078.0,1.17669823]
[1728206561080,0.002,62079.0,62078.0,0.81589823]
[1728206561264,0.002,62079.0,62078.0,1.17669823]
[1728206561470,0.002,62079.0,62078.0,0.81589823]
[1728206561782,0.002,62079.0,62078.0,1.17669823]
[1728206562172,0.002,62079.0,62078.0,0.81589823]
[1728206562375,0.002,62079.0,62078.0,1.17669823]
[1728206563166,0.002,62079.0,62078.0,1.06669823]
[1728206563373,0.002,62079.0,62078.0,0.99385016]
[1728206563866,0.002,62079.0,62078.0,1.1223207]
[1728206564679,0.002,62079.0,62078.0,0.99408188]
[1728206565574,0.002,62079.0,62078.0,1.17703325]
[1728206565775,0.0075,62080.0,62078.0,1.11260225]
[1728206565974,0.0075,62080.0,62079.0,0.47996742]
[1728206566180,0.0346,62083.0,62080.0,0.064429]
[1728206566181,0.0421,62083.0,62080.0,0.064429]
[1728206566377,0.02209126,62084.0,62082.0,0.1104]
[1728206566672,0.02209126,62084.0,62083.0,0.41553742]
[1728206567068,0.02209126,62084.0,62083.0,0.52553742]
[1728206567272,0.09264018,62084.0,62083.0,0.24877914]
[1728206567483,0.09264018,62084.0,62083.0,0.1104]
[1728206569286,0.09264018,62084.0,62083.0,0.1154]
[1728206569674,0.12684018,62084.0,62083.0,0.1154]
[1728206574381,0.12684018,62084.0,62083.0,0.36917397]
[1728206574382,0.05629126,62084.0,62083.0,0.36917397]
[1728206574582,0.05629126,62084.0,62083.0,0.25917397]
[1728206574986,0.05629126,62084.0,62083.0,0.12117482]
[1728206575184,0.05629126,62084.0,62083.0,0.25917306]
[1728206579291,0.05629126,62084.0,62083.0,0.25920229]
[1728206582682,0.05629126,62084.0,62083.0,0.25919282]
[1728206587785,0.05629126,62084.0,62083.0,0.12118342]
[1728206587983,0.05629126,62084.0,62083.0,0.25930509]
[1728206588985,0.05629126,62084.0,62083.0,0.12118342]
[1728206589293,0.01599719,62084.0,62083.0,0.12118342]
[1728206589588,0.01599719,62084.0,62082.0,0.08226164]
[1728206589589,0.19374943,62084.0,62082.0,0.08226164]
[1728206589801,0.12038692,62083.0,62082.0,0.08226164]
[1728206590516,0.12038692,62083.0,62082.0,0.14668864]
[1728206590792,0.12038692,62083.0,62082.0,0.15268864]
[1728206591377,0.12038685,62083.0,62082.0,0.15268864]
[1728206592477,0.12038656,62083.0,62082.0,0.15268864]
[1728206594898,0.1203844,62083.0,62082.0,0.15268864]
[1728206597395,0.0004,62083.0,62082.0,0.40756846]
[1728206600592,0.77861001,62085.0,62083.0,0.064426]
[1728206600894,0.77633,62085.0,62084.0,0.25487982]
[1728206601094,0.81913,62085.0,62084.0,0.25487982]
[1728206603303,0.81913,62085.0,62084.0,0.25687982]
[1728206604194,0.81913,62085.0,62084.0,0.25987982]
[1728206604398,0.99687888,62085.0,62083.0,0.05800089]
[1728206604598,0.17814888,62084.0,62083.0,0.05800089]
[1728206605306,0.12038465,62084.0,62083.0,0.05800089]
[1728206605506,0.12038465,62084.0,62083.0,0.12242689]
[1728206605910,0.12038465,62084.0,62083.0,0.12442689]
[1728206606908,0.12038465,62084.0,62083.0,0.12742689]
[1728206607705,0.12038465,62084.0,62083.0,0.12642689]
[1728206609409,0.12038465,62084.0,62083.0,0.06200089]
[1728206609604,0.24257469,62084.0,62083.0,0.02750089]
[1728206612006,0.24257821,62084.0,62083.0,0.02750089]
[1728206612526,0.064825,62084.0,62083.0,0.24097228]
[1728206616813,0.064825,62084.0,62083.0,0.24097694]
[1728206618216,0.064825,62084.0,62083.0,0.2409666]
[1728206619326,0.064825,62084.0,62083.0,0.14446713]
[1728206619634,0.064825,62084.0,62083.0,0.02750089]
[1728206627432,0.24257954,62084.0,62083.0,0.01893324]
[1728206627635,0.24257954,62084.0,62079.0,0.42523]
[1728206627938,0.0004,62080.0,62079.0,0.42523]
[1728206628138,0.17815454,62080.0,62079.0,0.42523]
[1728206628338,0.17815454,62080.0,62079.0,0.06443]
[1728206628629,0.17815454,62080.0,62079.0,0.42523]
[1728206628839,0.17815454,62080.0,62079.0,0.06443]
[1728206629042,0.17815454,62080.0,62079.0,0.42523]
[1728206629537,0.17915454,62080.0,62079.0,0.43123]
[1728206629834,0.17915454,62080.0,62079.0,0.43623]
[1728206630024,0.17915454,62080.0,62079.0,0.07543]
[1728206630227,0.17915454,62080.0,62079.0,0.43623]
[1728206630623,0.17915454,62080.0,62079.0,0.43123]
[1728206630820,0.18015454,62080.0,62079.0,0.43623]
[1728206632031,0.18015454,62080.0,62079.0,0.07543]
[1728206632228,0.18015454,62080.0,62079.0,0.43623]
[1728206632426,0.24458354,62080.0,62079.0,0.3718]
[1728206634437,0.066829,62080.0,62079.0,0.62894016]
[1728206634635,0.02653286,62080.0,62079.0,0.62894016]
[1728206635139,0.02653286,62080.0,62079.0,0.26814016]
[1728206641038,0.02653286,62080.0,62079.0,0.22483769]
[1728206641751,0.02653286,62080.0,62079.0,0.011]
[1728206641752,0.09708745,62080.0,62079.0,0.011]
[1728206642056,0.14652565,62080.0,62079.0,0.011]
[1728206644839,0.14652564,62080.0,62079.0,0.011]
[1728206645644,0.14652564,62080.0,62079.0,0.121]
[1728206649635,0.02653286,62080.0,62079.0,0.121]
[1728206649840,0.02653286,62080.0,62079.0,0.23803826]
[1728206653447,0.02653286,62080.0,62079.0,0.12803826]
[1728206654639,0.02653286,62080.0,62079.0,0.12805671]
[1728206656854,0.05764516,62080.0,62079.0,0.011]
[1728206657750,0.1465256,62080.0,62078.0,0.41038627]
[1728206657945,0.12039274,62079.0,62078.0,0.41038627]
[1728206658144,0.18482274,62079.0,62078.0,0.41038627]
[1728206658946,0.18482274,62079.0,62078.0,0.41638627]
[1728206659553,0.18482448,62079.0,62078.0,0.42238627]
[1728206659738,0.18582448,62079.0,62078.0,0.42238627]
[1728206660146,0.18682448,62079.0,62078.0,0.42238627]
[1728206664446,0.18682006,62079.0,62078.0,0.42238627]
[1728206664650,0.06683,62079.0,62078.0,0.6809856]
[1728206664847,0.06683,62079.0,62078.0,0.54037005]
[1728206665256,0.06683,62079.0,62078.0,0.68107454]
[1728206665643,0.002,62079.0,62078.0,0.68107454]
[1728206666558,0.06643,62079.0,62078.0,0.68107454]
[1728206678857,0.002,62079.0,62078.0,0.68107454]
[1728206679563,0.064427,62082.0,62078.0,0.68107454]
[1728206679764,0.11999121,62081.0,62078.0,0.42238627]
[1728206680066,0.11999121,62080.0,62078.0,0.42238627]
[1728206680266,0.11999121,62079.0,62078.0,0.42238627]
[1728206680759,0.11999121,62079.0,62078.0,0.41738627]
[1728206681667,0.12099121,62079.0,62078.0,0.41738627]
[1728206682564,0.29825153,62079.0,62078.0,0.41738627]
[1728206682960,0.29925153,62079.0,62078.0,0.41738627]
[1728206686369,0.12199121,62079.0,62078.0,0.41738627]
[1728206686773,0.002,62079.0,62078.0,0.67541898]
[1728206686974,0.002,62079.0,62078.0,0.33593271]
[1728206688776,0.002,62079.0,62078.0,0.33510762]
[1728206691085,0.002,62079.0,62078.0,0.39953862]
[1728206691282,0.002,62079.0,62078.0,1.75727579]
[1728206691582,0.17725738,62080.0,62079.0,0.06443]
[1728206691784,0.17725738,62080.0,62079.0,1.07734554]
[1728206692882,0.17825738,62080.0,62079.0,1.07934554]
[1728206693394,0.17825738,62080.0,62079.0,1.67934554]
[1728206693593,0.17825738,62080.0,62079.0,1.68328467]
[1728206693785,0.17925738,62080.0,62079.0,1.68328467]
[1728206693979,0.002,62080.0,62079.0,1.68328467]
[1728206694680,0.002,62080.0,62079.0,1.08328467]
[1728206694894,0.05143187,62080.0,62079.0,0.66507]
[1728206695194,0.07254554,62080.0,62079.0,0.66507]
[1728206695982,0.07254554,62080.0,62079.0,0.18183]
[1728206697879,0.07254554,62080.0,62079.0,0.54263]
[1728206698085,0.0004,62084.0,62083.0,0.064426]
[1728206698286,0.0004,62084.0,62083.0,0.63218788]
[1728206698582,0.19466682,62084.0,62083.0,0.63218788]
[1728206698993,0.04982647,62084.0,62083.0,0.63218788]
[1728206699183,0.04982647,62084.0,62083.0,0.63418788]
[1728206699492,0.0004,62084.0,62083.0,0.63418788]
[1728206700191,0.04982753,62084.0,62083.0,0.63418788]
[1728206700393,0.04982753,62084.0,62083.0,0.63518788]
[1728206700587,0.04982753,62084.0,62083.0,1.11842788]
[1728206700785,0.0004,62084.0,62083.0,1.11842788]
[1728206701687,0.96624861,62085.0,62083.0,1.11842788]
[1728206701688,0.81481001,62085.0,62084.0,0.064425]
[1728206701887,0.81481001,62085.0,62084.0,0.49056659]
[1728206701888,0.90096861,62085.0,62084.0,0.49056659]
[1728206702089,0.04609316,62085.0,62084.0,1.60716659]
[1728206702597,0.04609316,62085.0,62084.0,1.73564725]
[1728206702783,0.04609316,62085.0,62084.0,1.73764725]
[1728206702985,0.04609316,62085.0,62084.0,1.73964725]
[1728206703187,0.04609316,62085.0,62084.0,1.12116659]
[1728206703389,0.04609316,62085.0,62084.0,1.72116659]
[1728206704005,0.0075,62089.0,62084.0,1.65674159]
[1728206704189,0.0075,62092.0,62088.0,0.56774949]
[1728206704390,0.1138,62098.0,62091.0,0.174818]
[1728206704391,0.0075,62096.0,62091.0,0.174818]
[1728206704594,0.11,62098.0,62095.0,0.0004]
[1728206704896,0.11,62098.0,62097.0,0.0004]
[1728206706187,0.12,62098.0,62097.0,0.0004]
[1728206706691,0.12,62098.0,62097.0,0.0014]
[1728206706692,0.13,62098.0,62097.0,0.0014]
[1728206707298,0.02,62098.0,62097.0,0.29291862]
[1728206707505,0.02,62098.0,62097.0,0.37307393]
[1728206707689,0.02,62098.0,62097.0,0.29291862]
[1728206708297,0.01,62098.0,62097.0,0.29291862]
[1728206708486,0.018,62098.0,62097.0,0.29291862]
[1728206709194,0.016,62098.0,62097.0,0.29291862]
[1728206709802,0.0075,62099.0,62098.0,0.064411]
[1728206710000,0.0075,62099.0,62098.0,0.064811]
[1728206711393,0.0075,62099.0,62098.0,0.065811]
[1728206711590,0.0075,62099.0,62098.0,0.175811]
[1728206712992,0.0075,62099.0,62098.0,0.176811]
[1728206716801,0.18519359,62099.0,62097.0,0.2613075]
[1728206717002,0.17809359,62098.0,62097.0,0.2613075]
[1728206717305,0.17809359,62098.0,62097.0,0.2625075]
[1728206717797,0.17809359,62098.0,62097.0,0.1716513]
[1728206718003,0.17809359,62098.0,62097.0,0.1736513]
[1728206718404,0.17809359,62098.0,62097.0,0.0970424]
[1728206719104,0.17809359,62098.0,62097.0,0.0980424]
[1728206719801,0.17809359,62098.0,62097.0,0.0990424]
[1728206720804,0.17809359,62098.0,62097.0,0.2090424]
[1728206723605,0.17809359,62098.0,62097.0,0.03921687]
[1728206724110,0.17809359,62098.0,62097.0,0.10362887]
[1728206724803,0.17809359,62098.0,62096.0,0.393]
[1728206724804,0.17809359,62098.0,62096.0,0.31939498]
[1728206725111,0.0004,62098.0,62097.0,0.17408334]
[1728206725499,0.0004,62098.0,62097.0,0.23849534]
[1728206725907,0.0083,62099.0,62097.0,0.174412]
[1728206726102,0.0083,62099.0,62098.0,0.06454106]
[1728206726295,0.0083,62099.0,62098.0,0.12895206]
[1728206727222,0.0083,62099.0,62098.0,0.064811]
[1728206727510,0.0083,62099.0,62098.0,0.065811]
[1728206727704,0.0083,62099.0,62098.0,0.066811]
[1728206731914,0.12824635,62099.0,62098.0,0.066811]
[1728206732911,0.12824635,62099.0,62098.0,0.002]
[1728206733515,0.12824635,62099.0,62098.0,0.066411]
[1728206735408,0.12824696,62099.0,62098.0,0.066411]
[1728206740011,0.0083,62099.0,62098.0,0.18910589]
[1728206742622,0.0083,62099.0,62098.0,0.12469489]
[1728206744818,0.0083,62099.0,62098.0,0.23469489]
[1728206747014,0.0083,62099.0,62098.0,0.05902326]
[1728206747015,0.12825033,62099.0,62098.0,0.05902326]
[1728206755031,0.05774771,62100.0,62098.0,0.05902326]
[1728206755032,0.57187086,62101.0,62098.0,0.49823837]
[1728206755235,0.57187086,62101.0,62100.0,0.0004]
[1728206755236,0.56967086,62101.0,62100.0,0.0004]
[1728206755531,0.63407886,62101.0,62100.0,0.26956337]
[1728206756432,0.63507886,62101.0,62100.0,0.26956337]
[1728206756729,0.63607886,62101.0,62100.0,0.26956337]
[1728206759831,0.63607886,62101.0,62100.0,0.39217528]
[1728206760039,0.63607886,62101.0,62100.0,0.26947606]
[1728206762024,0.63607886,62101.0,62100.0,0.12309929]
[1728206764837,0.27527886,62101.0,62100.0,0.12309929]
[1728206765145,0.427208,62101.0,62100.0,0.12309929]
[1728206767043,0.066408,62101.0,62100.0,0.12309929]
[1728206767231,0.427208,62101.0,62100.0,0.12309929]
[1728206767828,0.066408,62101.0,62100.0,0.12309929]
[1728206768029,0.427208,62101.0,62100.0,0.12309929]
[1728206768333,0.066408,62101.0,62100.0,0.12310024]
[1728206768645,0.427208,62101.0,62100.0,0.12310024]
[1728206768842,0.066408,62101.0,62100.0,0.12310024]
[1728206769043,0.427208,62101.0,62100.0,0.12310024]
[1728206770035,0.24410884,62101.0,62100.0,0.0004]
[1728206770232,0.18636022,62101.0,62100.0,0.0004]
[1728206770449,0.54716022,62101.0,62100.0,0.0004]
[1728206770636,0.60490884,62101.0,62100.0,0.0004]
[1728206770830,0.54050084,62101.0,62100.0,0.0004]
[1728206771945,0.54049549,62101.0,62100.0,0.0004]
[1728206773339,0.5404955,62101.0,62100.0,0.0004]
[1728206775061,0.1796955,62101.0,62100.0,0.0004]
[1728206775246,0.12194688,62101.0,62100.0,0.0004]
[1728206777048,0.002,62101.0,62100.0,0.0004]
[1728206779443,0.002,62101.0,62100.0,0.08080926]
[1728206780543,0.002,62101.0,62100.0,0.0004]
[1728206782454,0.3628,62101.0,62100.0,0.0004]
[1728206783054,0.002,62101.0,62100.0,0.0004]
[1728206783646,0.3628,62101.0,62100.0,0.0004]
[1728206784041,0.3628,62101.0,62096.0,0.05812062]
[1728206784042,0.17969868,62101.0,62096.0,0.05812062]
[1728206784249,0.38709829,62100.0,62098.0,0.11]
[1728206784554,0.17769868,62099.0,62098.0,0.11]
[1728206785252,0.11995076,62099.0,62098.0,0.11]
[1728206785449,0.17769868,62099.0,62098.0,0.11]
[1728206785650,0.11995076,62099.0,62098.0,0.11]
[1728206787353,0.11995076,62099.0,62098.0,0.111]
[1728206788646,0.29436076,62099.0,62098.0,0.001]
[1728206788954,0.35210868,62099.0,62098.0,0.001]
[1728206791748,0.71290868,62099.0,62098.0,0.001]
[1728206792256,0.53521,62099.0,62098.0,0.001]
[1728206794461,0.42521,62099.0,62098.0,0.001]
[1728206794667,0.42521,62099.0,62098.0,0.20411192]
[1728206794852,0.3608,62099.0,62098.0,0.15720266]
[1728206795159,0.3608,62099.0,62098.0,0.23752101]
[1728206795354,0.3608,62099.0,62098.0,0.0345]
[1728206795553,0.42521,62099.0,62098.0,0.0345]
[1728206796862,0.06441,62099.0,62098.0,0.0345]
[1728206797063,0.42521,62099.0,62098.0,0.0345]
[1728206799062,0.2421195,62099.0,62098.0,0.0345]
[1728206799268,0.54516807,62099.0,62098.0,0.0345]
[1728206799470,0.6029195,62099.0,62098.0,0.0345]
[1728206802766,0.24211967,62099.0,62098.0,0.02674819]
[1728206803075,0.54516824,62099.0,62098.0,0.02674819]
[1728206803266,0.60291967,62099.0,62098.0,0.02674819]
[1728206803767,0.24211967,62099.0,62098.0,0.02674819]
[1728206803971,0.54516824,62099.0,62098.0,0.02674819]
[1728206804171,0.60291967,62099.0,62098.0,0.02674819]
[1728206804764,0.24211967,62099.0,62098.0,0.02674819]
[1728206804965,0.18436824,62099.0,62098.0,0.02674819]
[1728206805166,0.54516824,62099.0,62098.0,0.02674819]
[1728206805369,0.24211967,62099.0,62098.0,0.02674819]
[1728206805572,0.54516824,62099.0,62098.0,0.02674819]
[1728206805768,0.60291967,62099.0,62098.0,0.02674819]
[1728206805968,0.24211967,62099.0,62098.0,0.02674819]
[1728206806171,0.54516824,62099.0,62098.0,0.02674819]
[1728206806371,0.24211967,62099.0,62098.0,0.02674819]
[1728206806566,0.18436824,62099.0,62098.0,0.02674819]
[1728206806764,0.54516824,62099.0,62098.0,0.02674819]
[1728206806972,0.60291967,62099.0,62098.0,0.02674819]
[1728206807172,0.24800326,62099.0,62098.0,0.46588334]
[1728206807475,0.31241326,62099.0,62098.0,0.46588334]
[1728206807668,0.31241326,62099.0,62098.0,0.46609178]
[1728206807868,0.06441,62099.0,62098.0,0.6597421]
[1728206808069,0.06441,62099.0,62098.0,0.46609178]
[1728206808280,0.06441,62099.0,62098.0,0.65783397]
[1728206808979,0.06441,62099.0,62098.0,0.46609178]
[1728206809968,0.17441,62099.0,62098.0,0.43934359]
[1728206810175,0.17441,62099.0,62098.0,0.56789623]
[1728206810365,0.17441,62099.0,62098.0,0.43934359]
[1728206812379,0.17441,62099.0,62098.0,0.43801937]
[1728206812679,0.17441,62099.0,62098.0,0.54865967]
[1728206813489,0.17441,62099.0,62098.0,0.3798638]
[1728206813877,0.53521,62099.0,62098.0,0.3798638]
[1728206814073,0.53521,62099.0,62095.0,0.0075]
[1728206814074,0.71293497,62099.0,62095.0,0.0075]
[1728206814279,0.174813,62096.0,62095.0,0.0075]
[1728206814479,0.174813,62096.0,62092.0,0.0075]
[1728206814480,0.064416,62093.0,62092.0,0.0075]
[1728206814690,0.064416,62093.0,62089.0,0.03643037]
[1728206814691,0.064419,62090.0,62089.0,0.03643037]
[1728206814985,0.064419,62090.0,62086.0,0.0075]
[1728206814986,0.064421,62088.0,62086.0,0.0075]
[1728206815194,0.12036891,62087.0,62086.0,0.0075]
[1728206815487,0.12036891,62087.0,62083.0,0.105526]
[1728206815684,0.12036891,62086.0,62083.0,0.105526]
[1728206816076,0.12036891,62086.0,62085.0,0.39049834]
[1728206816277,0.16132268,62086.0,62085.0,0.39049834]
[1728206816475,0.28129159,62086.0,62085.0,0.39049834]
[1728206817292,0.28129792,62086.0,62085.0,0.39049834]
[1728206817590,0.12037524,62086.0,62085.0,0.02969834]
[1728206817790,0.12037524,62086.0,62084.0,0.07233366]
[1728206818097,0.0004,62086.0,62085.0,0.011]
[1728206818396,0.03250781,62086.0,62085.0,0.009]
[1728206818596,0.03250781,62086.0,62085.0,0.02]
[1728206818597,0.1223754,62086.0,62085.0,0.02]
[1728206818787,0.28329808,62086.0,62085.0,0.02]
[1728206819183,0.28329808,62086.0,62085.0,0.009]
[1728206820301,0.1223754,62086.0,62085.0,0.009]
[1728206820797,0.1213754,62086.0,62085.0,0.009]
[1728206820995,0.12237826,62086.0,62085.0,0.02]
[1728206822294,0.12081335,62087.0,62085.0,0.45648918]
[1728206822493,0.12081335,62087.0,62086.0,0.56534394]
[1728206823102,0.12081335,62087.0,62086.0,0.43688918]
[1728206824400,0.12181335,62087.0,62086.0,0.43688918]
[1728206824788,0.065422,62087.0,62086.0,0.43688918]
[1728206824995,0.066422,62087.0,62086.0,0.44688918]
[1728206825398,0.066422,62087.0,62086.0,0.55688918]
[1728206825602,0.066422,62087.0,62086.0,0.420289]
[1728206825801,0.066422,62087.0,62086.0,0.69368826]
[1728206826301,0.3608,62088.0,62086.0,0.69368826]
[1728206826499,0.3608,62088.0,62087.0,0.4348335]
[1728206826700,0.3608,62088.0,62087.0,0.4352335]
[1728206826701,0.425221,62088.0,62087.0,0.4352335]
[1728206827103,0.064421,62088.0,62087.0,0.4352335]
[1728206827304,0.3608,62089.0,62087.0,0.4352335]
[1728206827490,0.3608,62089.0,62088.0,0.4352335]
[1728206827692,0.42522,62089.0,62088.0,0.4352335]
[1728206829002,0.42522,62089.0,62088.0,0.4512335]
[1728206829003,0.42722,62089.0,62088.0,0.4512335]
[1728206830409,0.06642,62089.0,62088.0,0.4512335]
[1728206830704,0.42722,62089.0,62088.0,0.4512335]
[1728206830894,0.06642,62089.0,62088.0,0.4512335]
[1728206831090,0.42722,62089.0,62088.0,0.4512335]
[1728206834406,0.06642,62089.0,62088.0,0.4512335]
[1728206834598,0.42722,62089.0,62088.0,0.4512335]
[1728206835310,0.06642,62089.0,62088.0,0.4512335]
[1728206835500,0.42722,62089.0,62088.0,0.4512335]
[1728206835700,0.42722,62089.0,62088.0,0.44834786]
[1728206837013,0.06642,62089.0,62088.0,0.44834786]
[1728206837208,0.49776604,62089.0,62088.0,0.0164]
[1728206838811,0.13696604,62089.0,62088.0,0.0164]
[1728206839018,0.49776604,62089.0,62088.0,0.0164]
[1728206844213,0.37081238,62089.0,62088.0,0.78408002]
[1728206844417,0.3385336,62089.0,62088.0,0.78408002]
[1728206845305,0.3385336,62089.0,62088.0,0.6393869]
[1728206845608,0.06442,62089.0,62088.0,0.63412101]
[1728206847103,0.01607062,62089.0,62088.0,0.63412101]
[1728206847301,0.0004,62090.0,62088.0,0.63412101]
[1728206847503,0.0004,62090.0,62089.0,0.42916512]
[1728206847907,0.0004,62090.0,62089.0,0.61761139]
[1728206848609,0.0024,62090.0,62089.0,0.61761139]
[1728206849111,0.0014,62090.0,62089.0,0.61761139]
[1728206849315,0.066819,62090.0,62089.0,0.62461139]
[1728206851120,0.066819,62090.0,62089.0,0.63161139]
[1728206852423,0.066819,62090.0,62089.0,0.44316512]
[1728206858316,0.066819,62090.0,62089.0,0.55316512]
[1728206859323,0.066819,62090.0,62089.0,0.1244]
[1728206860022,0.13736218,62090.0,62089.0,0.1244]
[1728206860229,0.1867924,62090.0,62089.0,0.1244]
[1728206860424,0.31677312,62090.0,62089.0,0.1244]
[1728206860619,0.34788041,62090.0,62089.0,0.1244]
[1728206863922,0.1867924,62090.0,62089.0,0.1244]
[1728206866333,0.18679224,62090.0,62089.0,0.1244]
[1728206867426,0.16148801,62093.0,62089.0,0.55174316]
[1728206867736,0.16148801,62093.0,62090.0,0.55600631]
[1728206867737,0.064418,62091.0,62090.0,0.55600631]
[1728206869627,0.065418,62091.0,62090.0,0.56200631]
[1728206869825,0.065418,62091.0,62090.0,0.56032749]
[1728206870631,0.065418,62091.0,62090.0,0.61925432]
[1728206871233,0.066418,62091.0,62090.0,0.62625432]
[1728206872748,0.066418,62091.0,62090.0,0.48439774]
[1728206873047,0.066418,62091.0,62090.0,0.62629552]
[1728206874442,0.066418,62091.0,62090.0,0.013]
[1728206874644,0.18639109,62091.0,62090.0,0.013]
[1728206877540,0.33136117,62091.0,62090.0,0.013]
[1728206879241,0.30025396,62091.0,62090.0,0.013]
[1728206879450,0.33136114,62091.0,62090.0,0.013]
[1728206882339,0.01001282,62091.0,62090.0,0.62434211]
[1728206882646,0.0004,62093.0,62090.0,0.62434211]
[1728206882848,0.064417,62092.0,62091.0,0.61134211]
[1728206884740,0.065417,62092.0,62091.0,0.006]
[1728206884944,0.065417,62092.0,62091.0,0.26528007]
[1728206885948,0.065417,62092.0,62091.0,0.27028007]
[1728206887538,0.175417,62092.0,62091.0,0.27028007]
[1728206889340,0.14210816,62092.0,62091.0,0.011]
[1728206890642,0.20652516,62092.0,62091.0,0.011]
[1728206892250,0.56732516,62092.0,62091.0,0.011]
[1728206892551,0.20652519,62092.0,62091.0,0.011]
[1728206892944,0.56732519,62092.0,62091.0,0.011]
[1728206893351,0.60676222,62092.0,62091.0,0.011]
[1728206893553,0.24596222,62092.0,62091.0,0.011]
[1728206893753,0.60676222,62092.0,62091.0,0.011]
[1728206894050,0.24596222,62092.0,62091.0,0.011]
[1728206894237,0.60676222,62092.0,62091.0,0.011]
[1728206894643,0.24596222,62092.0,62091.0,0.011]
[1728206894847,0.60676222,62092.0,62091.0,0.011]
[1728206896147,0.24596222,62092.0,62091.0,0.011]
[1728206896342,0.60676222,62092.0,62091.0,0.011]
[1728206897356,0.24596222,62092.0,62091.0,0.011]
[1728206897559,0.24596222,62092.0,62091.0,0.56163069]
[1728206897560,0.4314612,62092.0,62091.0,0.56163069]
[1728206898349,0.0706612,62092.0,62091.0,0.56163069]
[1728206898749,0.4314612,62092.0,62091.0,0.56163069]
[1728206899177,0.0706612,62092.0,62091.0,0.56163069]
[1728206899383,0.4314612,62092.0,62091.0,0.56163069]
[1728206899776,0.0706612,62092.0,62091.0,0.56163069]
[1728206899977,0.4314612,62092.0,62091.0,0.56163069]
[1728206901081,0.0706612,62092.0,62091.0,0.56163069]
[1728206901281,0.4314612,62092.0,62091.0,0.56163069]
[1728206902082,0.0706612,62092.0,62091.0,0.56163069]
[1728206902286,0.4314612,62092.0,62091.0,0.56163069]
[1728206902475,0.4314612,62092.0,62091.0,0.55892704]
[1728206903282,0.0706612,62092.0,62091.0,0.55892704]
[1728206904084,0.4314612,62092.0,62091.0,0.55892704]
[1728206904273,0.37505422,62092.0,62091.0,0.55892704]
[1728206904475,0.71295437,62092.0,62087.0,0.064821]
[1728206904674,0.0004,62088.0,62087.0,0.064821]
[1728206904976,0.03150819,62088.0,62087.0,0.064821]
[1728206905175,0.12037688,62088.0,62087.0,0.064821]
[1728206906186,0.12137688,62088.0,62087.0,0.082821]
[1728206907083,0.12237688,62088.0,62087.0,0.082821]
[1728206907286,0.12237865,62088.0,62087.0,0.082821]
[1728206907489,0.29679965,62088.0,62087.0,0.0184]
[1728206912595,0.064421,62088.0,62087.0,0.43648017]
[1728206913181,0.064421,62088.0,62087.0,0.62070347]
[1728206913492,0.064421,62088.0,62087.0,0.43648017]
[1728206917088,0.064421,62088.0,62087.0,0.62005149]
[1728206917492,0.47296001,62091.0,62087.0,0.62005149]
[1728206917683,0.4708,62091.0,62090.0,0.0004]